Cogmind - Beta 14 @@@ ROGUE MODE // 2024.09.15 @ 13:52:08 Player: Dull Result: Destroyed by D-53 Grenadier with Mini Grenade Launcher Performance ------------- Evolutions (0) 0 Regions Visited (4) 800 Robots Destroyed (53) 265 Value Destroyed (928) 928 Prototype IDs (25) 500 Alien Tech Used (0) 0 Bonus (176) 176 TOTAL SCORE: 2669 Bonus ------- Aligned with FarCom 300 Friendly Fire -124 Cogmind --------- Core Integrity 0/250 Matter 262/300 Energy 69/100 System Corruption 0% Temperature Cool (26) Movement Core (1400) Ox27 Location -9/Mines Parts ------- > --- POWER (1) -------- (None) > --- PROPULSION (2) --- (None) > --- UTILITY (2) ------ Huge Storage Unit > --- WEAPON (2) ------- Rocket Launcher > --- INVENTORY (25) --- Ion Engine Ion Engine Ion Engine Light Angular Momentum Engine Light Treads Heat Sink Improved Heat Sink Large Storage Unit High-capacity Matter Pod (200) Melee Analysis Suite Armor Integrity Analyzer Hacking Suite Beamcaster Particle Cannon Firepult Light Assault Rifle Light Assault Rifle Mining Laser Maul Peak State ------------ > --- POWER ------------ Light Ion Engine > --- PROPULSION ------- Light Treads Light Treads > --- UTILITY ---------- Cooling System Huge Storage Unit > --- WEAPON ----------- Firepult > --- INVENTORY -------- Ion Engine Ion Engine Ion Engine Light Angular Momentum Engine Light Treads Improved Treads Heat Sink Improved Heat Sink Large Storage Unit High-capacity Matter Pod Melee Analysis Suite Armor Integrity Analyzer Hacking Suite Beamcaster Particle Cannon Light Assault Rifle Light Assault Rifle Rocket Launcher Mining Laser Maul [Rating: 30] Favorites ----------- Power Light Ion Engine Engine Light Ion Engine Propulsion Light Treads Treads Light Treads Leg Aluminum Leg Utility Small Storage Unit Device Improved Terrain Scanner Storage Small Storage Unit Weapon Assault Rifle Energy Gun EM Pulse Gun Energy Cannon Firepult Ballistic Gun Assault Rifle Launcher Rocket Launcher Special Weapon Mining Laser Build | -11 -10 -10 -10 -9 ------- Run | Yrd Mat Min Exi Min Slots Evolved . | . . . . . Power . | . . . . . Propulsion . | . . . . . Utility . | . . . . . Weapon . | . . . . . Parts Attached 31 | 1 9 11 4 6 Power 7 | . 2 3 . 2 Engine 7 | . 2 3 . 2 Core . | . . . . . Reactor . | . . . . . Propulsion 4 | . 2 . 1 1 Treads 4 | . 2 . 1 1 Leg . | . . . . . Wheel . | . . . . . Hover . | . . . . . Flight . | . . . . . Utility 7 | 1 . 2 2 2 Device 4 | 1 . 2 . 1 Storage 3 | . . . 2 1 Processor . | . . . . . Hackware . | . . . . . Protection . | . . . . . Artifact . | . . . . . Weapon 13 | . 5 6 1 1 Energy Gun 1 | . . 1 . . Energy Cannon 3 | . 2 . 1 . Ballistic Gun 7 | . 2 5 . . Ballistic Cannon . | . . . . . Launcher 1 | . . . . 1 Special Weapon 1 | . 1 . . . Impact Weapon . | . . . . . Slashing Weapon . | . . . . . Piercing Weapon . | . . . . . Special Melee Weapon . | . . . . . Unidentified Prototypes . | . . . . . Parts Lost 11 | . 1 4 . 6 Power 2 | . . . . 2 Propulsion 4 | . . 1 . 3 Utility 2 | . . 1 . 1 Weapon 3 | . 1 2 . . Highest Loss Streak 5 | . 1 2 . 5 To Critical Strikes . | . . . . . Average Slot Usage (%) 88 | . 100 95 74 81 Engine 13 | . 14 14 14 13 Treads 24 | . 16 26 28 27 Leg 2 | . 11 . . . Device 10 | . 14 11 . 10 Storage 14 | . 14 14 14 14 Energy Cannon 9 | . 11 . 10 13 Ballistic Gun 11 | . 14 27 7 . Peak Build Rating 30 | 9 10 10 26 30 Average Rating 17 | 7 9 9 20 27 On Entrance 11 | 6 9 10 6 26 Naked Turns . | . . . . . Heaviest Build 225 | 13 16 15 225 225 Greatest Support 40 | 20 40 40 40 40 Greatest Overweight (x) 5 | . . . 5 5 Average Overweight (x) . | . . . 1 2 Largest Inventory Capacity 35 | 8 8 8 35 35 Average Capacity 16 | 8 8 8 20 27 Most Carried 21 | 6 8 8 10 21 Average Carried 9 | 6 7 7 8 14 Final Capacity 35 | 8 8 8 35 25 Final Carried 20 | 6 8 8 10 20 Class Distribution -------------------- 81% | Mutant 14% | Hauler-Mutant 3% | Scavenger-Mutant Dominant Class ---------------- Mutant | -10/Materials Mutant | -10/Mines Hauler-Mutant | -10/Exiles Mutant | -9/Mines Resources | -11 -10 -10 -10 -9 ----------- Run | Yrd Mat Min Exi Min Matter Collected 792 | 216 227 167 50 132 Remotely . | . . . . . Salvage Created 1673 | 29 877 187 . 580 Parts 116 | 2 68 22 . 24 Haulers Intercepted 2 | . 2 . . . Recyclers Shooed 2 | . 2 . . . Parts Field Recycled . | . . . . . Retrieved Matter . | . . . . . Parts Self-Destructed . | . . . . . Prevented . | . . . . . Kills | -11 -10 -10 -10 -9 ------- Run | Yrd Mat Min Exi Min Combat Hostiles Destroyed 41 | . 17 12 . 12 Guns 17 | . 5 12 . . Cannons 17 | . 12 . . 5 AOE 4 | . . . . 4 Classes Destroyed 11 | 1 7 . . 3 Worker 3 | . 2 1 . . Builder 4 | . 2 . . 2 Tunneler 2 | 1 1 . . . Hauler 2 | . 2 . . . Recycler 3 | . 1 . . 2 Operator 1 | . 1 . . . Swarmer 20 | . 6 12 . 2 Grunt 16 | . 11 . . 5 Duelist 1 | . . . . 1 Assembled 4 | . . . . 4 Guerrilla 1 | . . . . 1 Best Kill Streak 7 | 1 7 4 . 3 Combat Bots Only 4 | . 4 3 . 3 Max Kills in Single Turn 2 | 1 2 2 . 2 Gunslinging . | . . . . . Exploded 2 | . . . . 2 Melee . | . . . . . Uniques/NPCs Destroyed . | . . . . . Combat | -11 -10 -10 -10 -9 -------- Run | Yrd Mat Min Exi Min Hostile Shots Fired 183 | . 59 74 . 50 Missed 46 | . 17 11 . 18 Damage Taken 1705 | . 418 505 . 782 Core 252 | . 55 90 . 107 Absorbed by Shields . | . . . . . Core Remaining (%) 100 | 100 . . . . Volleys Fired 128 | 2 72 37 . 17 Largest 2 | 2 2 2 . 1 Hottest 250 | 60 100 40 . 250 Shots Fired 202 | 4 126 55 . 17 Gun 119 | 4 60 55 . . Cannon 70 | . 56 . . 14 Launcher 3 | . . . . 3 Special 10 | . 10 . . . Kinetic 117 | 2 60 55 . . Thermal 80 | . 66 . . 14 Explosive 3 | . . . . 3 Electromagnetic 2 | 2 . . . . Robot Hit Streak 9 | 1 7 9 . 4 Robot Miss Streak 7 | 1 4 4 . 7 Penetration Max . | . . . . . Secondary Targets 2 | . . 2 . . Max Gunslinging Chain 1 | . . 1 . . Shots Hit Robots 107 | 2 58 34 . 13 Core Hits 71 | 2 33 15 . 21 Critical Kills 2 | . 1 1 . . Critical Parts Destroyed . | . . . . . Critical Strikes 2 | . 1 1 . . Destroy 2 | . 1 1 . . Melee Attacks . | . . . . . Impact . | . . . . . Slashing . | . . . . . Piercing . | . . . . . Sneak Attacks . | . . . . . Combat Hostiles . | . . . . . Follow-up Attacks . | . . . . . Damage Inflicted 2325 | 38 1024 393 . 870 Guns 891 | 38 466 387 . . Cannons 787 | . 554 . . 233 Explosions 637 | . . . . 637 Melee . | . . . . . Ramming 10 | . 4 6 . . Kinetic 879 | 26 466 387 . . Thermal 1382 | . 554 . . 828 Explosive 42 | . . . . 42 Electromagnetic 12 | 12 . . . . Impact . | . . . . . Slashing . | . . . . . Piercing . | . . . . . Highest Corruption . | . . . . . Average Corruption . | . . . . . Corruption Purged . | . . . . . Corruption Blocked . | . . . . . Overload Shots . | . . . . . Overflow Damage 56 | . . . . 56 Projectiles 15 | . . . . 15 Explosions 41 | . . . . 41 Melee . | . . . . . Knockbacks . | . . . . . Impact . | . . . . . Kinetic . | . . . . . Secondary . | . . . . . Self-Inflicted Damage 214 | . . . . 214 Shots 21 | . . . . 21 Rammed 6 | . 2 3 . 1 Targets Rammed 7 | . 3 3 . 1 Kicked 1 | . 1 . . . Crushed . | . . . . . Highest Temperature 352 | . 244 . . 352 Average Temperature 82 | . 64 . . 121 Received Heat Transfer 208 | . 132 . . 76 Effects 1 | . 1 . . . Interference 1 | . 1 . . . Siege Activations . | . . . . . Robots Corrupted . | . . . . . Combat Hostiles . | . . . . . Parts Fried . | . . . . . Impact Corruptions . | . . . . . Robots Melted 4 | . . . . 4 Combat Hostiles 3 | . . . . 3 Parts Melted 10 | . 1 . . 9 Heat Transferred 5307 | . 1147 . . 4160 Parts Sabotaged . | . . . . . Parts Stolen . | . . . . . Parts Stripped . | . . . . . Power Chain Reactions . | . . . . . Alert | -11 -10 -10 -10 -9 ------- Run | Yrd Mat Min Exi Min Peak Influence 241 | 5 241 136 . 127 Initial 35 | . 3 35 . . Average 55 | 3 108 34 . 32 Maximum Alert Level 1 | . 1 . . . Low Security (%) 97 | 100 90 100 . 100 Level 1 2 | . 9 . . . Level 2 . | . . . . . Level 3 . | . . . . . Level 4 . | . . . . . Level 5 . | . . . . . High Security . | . . . . . Max Security . | . . . . . Squads Dispatched 4 | . 2 1 . 1 Investigation 2 | . 1 1 . . Extermination . | . . . . . Reinforcement 2 | . 1 . . 1 Assault . | . . . . . Garrison . | . . . . . Intercept . | . . . . . Searches Triggered . | . . . . . Construction Impeded 1 | . . . . 1 Haulers Reinforced . | . . . . . Active Scanning Responses . | . . . . . Cargo Convoy Interrupts . | . . . . . Stealth | -11 -10 -10 -10 -9 --------- Run | Yrd Mat Min Exi Min Distress Signals 2 | . 2 . . . Communications Jammed . | . . . . . Distress Signals . | . . . . . Times Spotted 54 | . 29 12 . 13 Peak Tracking Total 6 | . 6 3 . 3 Tactical Retreats 3 | . 1 1 . 1 Traps | -11 -10 -10 -10 -9 ------- Run | Yrd Mat Min Exi Min Traps Triggered . | . . . . . Indirectly . | . . . . . Trap Hack Attempts . | . . . . . Triggered . | . . . . . Disarmed . | . . . . . Reprogrammed . | . . . . . Reused . | . . . . . Traps Extracted . | . . . . . Installed . | . . . . . Triggered 1 | . . . . 1 Machines | -11 -10 -10 -10 -9 ---------- Run | Yrd Mat Min Exi Min Machines Disabled 1 | . 1 . . . Max in Single Turn 1 | . 1 . . . Machines Repaired . | . . . . . Machines Dismantled . | . . . . . Machines Sabotaged . | . . . . . Overloaded Fab Kills . | . . . . . Hacking | -11 -10 -10 -10 -9 --------- Run | Yrd Mat Min Exi Min Machines Accessed 9 | . 7 1 1 . Terminals 6 | . 5 1 . . Fabricators . | . . . . . Repair Stations . | . . . . . Recycling Units 2 | . 2 . . . Scanalyzers . | . . . . . Garrison Access . | . . . . . Total Hacks 26 | . 19 6 1 . Successful 10 | . 7 2 1 . Failed 15 | . 11 4 . . Catastrophic 1 | . . 1 . . Database Lockouts 1 | . 1 . . . Manual 17 | . 10 6 1 . Terminals 20 | . 14 6 . . Fabricators . | . . . . . Repair Stations . | . . . . . Recycling Units 5 | . 5 . . . Scanalyzers . | . . . . . Garrison Access . | . . . . . Terminal Hacks 8 | . 5 2 1 . Part Schematic 1 | . . 1 . . Robot Analysis 3 | . 2 1 . . Prototype ID Bank 1 | . 1 . . . Level Access Points 1 | . 1 . . . Recycling Unit Index 1 | . 1 . . . Derelict Proto ID Bank 1 | . . . 1 . Fabricator Hacks . | . . . . . Repair Station Hacks . | . . . . . Recycling Unit Hacks . | . . . . . Scanalyzer . | . . . . . Garrison Access Hacks . | . . . . . Unauthorized Hacks 2 | . 2 . . . Terminals . | . . . . . Fabricators . | . . . . . Repair Stations . | . . . . . Recycling Units 2 | . 2 . . . Reject 1 | . 1 . . . Mask 1 | . 1 . . . Scanalyzers . | . . . . . Garrison Access . | . . . . . Data Cores Recovered . | . . . . . Used . | . . . . . Hacking Detections 6 | . 5 1 . . Full Trace Events 2 | . 1 1 . . Feedback Events . | . . . . . Feedback Blocked . | . . . . . Robot Schematics Acquired . | . . . . . Robots Built . | . . . . . Authchips . | . . . . . Time . | . . . . . Total Robot Build Rating . | . . . . . Part Schematics Acquired 1 | . . 1 . . Parts Built . | . . . . . Authchips . | . . . . . Time . | . . . . . Total Part Build Rating . | . . . . . Parts Repaired . | . . . . . Time . | . . . . . Parts Recycled . | . . . . . Recycled Matter . | . . . . . Retrieved Matter . | . . . . . Retrieved Components . | . . . . . Parts Scanalyzed . | . . . . . Part Schematics Acquired . | . . . . . Parts Damaged . | . . . . . Bothacking | -11 -10 -10 -10 -9 ------------ Run | Yrd Mat Min Exi Min Used RIF Installer . | . . . . . Robots Hacked . | . . . . . Non-combat . | . . . . . Combat . | . . . . . Robot Hacks Applied . | . . . . . Relay Couplers Released . | . . . . . Fabnet Peak Effective % . | . . . . . Robots Rewired . | . . . . . Allies Hacked . | . . . . . Hacks Repelled . | . . . . . Allies | -11 -10 -10 -10 -9 -------- Run | Yrd Mat Min Exi Min Total Allies . | . . . . . Largest Group . | . . . . . Highest-Rated Group . | . . . . . Highest-Rated Ally . | . . . . . Total Orders . | . . . . . Ally Attacks . | . . . . . Total Damage . | . . . . . Kills . | . . . . . Allies Corrupted . | . . . . . Allies Melted 1 | . . . . 1 Intel | -11 -10 -10 -10 -9 ------- Run | Yrd Mat Min Exi Min Robot Analysis Total 3 | . 2 1 . . Derelict Logs Recovered 4 | . . 2 . 2 Drone Launches . | . . . . . Drone Recoveries . | . . . . . Exploration | -11 -10 -10 -10 -9 ------------- Run | Yrd Mat Min Exi Min Turns Passed 4812 | 27 1248 1184 682 1671 Spaces Moved 1994 | 17 604 653 273 447 Core . | . . . . . Treads 1688 | . 315 653 273 447 Legs 306 | 17 289 . . . Wheels . | . . . . . Hover . | . . . . . Flight . | . . . . . Fastest Speed 120 | 120 120 160 160 160 Average Speed 209 | 120 140 160 246 357 Slowest Speed 560 | 120 160 160 560 560 Overloaded Moves . | . . . . . Propulsion Burnouts . | . . . . . Robots Hopped . | . . . . . Cave-ins Triggered . | . . . . . Exploration Rate (%) 67 | 3 98 99 61 78 Regions Visited 4 Branch Regions 3 Pre-discovered Areas 2 | . . 1 . 1 Known Exits Taken . | . . . . . Unknown Exits Taken 4 | 1 1 1 1 . Scrap Searched 3 | . . 1 . 2 Spaces Dug 10 | . 10 . . . Terrain Destroyed 144 | . 10 . . 134 Melee . | . . . . . Projectile 18 | . 10 . . 8 AOE 126 | . . . . 126 Terrain Rammed . | . . . . . Walls Destroyed . | . . . . . Machines Disabled . | . . . . . Actions | -11 -10 -10 -10 -9 --------- Run | Yrd Mat Min Exi Min Total 2406 | 19 853 743 288 503 Wait 193 | . 154 30 . 9 Move 1990 | 16 603 652 272 447 Hop . | . . . . . Pick Up 36 | . 6 2 8 20 Fast Attach 7 | 1 . 2 2 2 Attach 7 | . 1 1 2 3 Detach 2 | . . . 1 1 Swap 17 | . 8 8 . 1 Drop 19 | . 6 8 3 2 Fire 128 | 2 72 37 . 17 Melee . | . . . . . Ram . | . . . . . Kick 1 | . 1 . . . Crush 6 | . 2 3 . 1 Escape Stasis . | . . . . . Rewire . | . . . . . Trap . | . . . . . Miscellaneous . | . . . . . Route ------- -11/Scrapyard -10/Materials (discovered 5 exits: *Mat x3 / *Min x2) -10/Mines (discovered 3 exits: *Mat x2 / *Exi) -10/Exiles -9/Mines (discovered 2 exits: [*Mat x2]) History --------- Turn | Location | Event 1 | -11/Scrapyard | Discovered new exit (range 3) 28 | -11/Scrapyard | Entered Materials 204 | -10/Materials | Central database locked down 302 | -10/Materials | Build established: Mutant 363 | -10/Materials | Discovered new exit (range 10) 487 | -10/Materials | Discovered new exit (range 9) 588 | -10/Materials | Discovered new exit (range 16) 594 | -10/Materials | Identified exit to Materials 1276 | -10/Materials | Entered Mines 1451 | -10/Mines | Received a Rocket Launcher from a helpful Derelict 1470 | -10/Mines | Learned Materials garrison access intel 1596 | -10/Mines | Discovered exit to Materials (range 5) 1674 | -10/Mines | Discovered exit to Materials (range 6) 1802 | -10/Mines | Discovered new exit (range 14) 1861 | -10/Mines | Deemed a non-threat by the Exiles lab entrance 2256 | -10/Mines | Core integrity fell below 50% 2460 | -10/Mines | Entered Exiles 2505 | -10/Exiles | Met 8R-AWN 2530 | -10/Exiles | Met EX-HEX 2578 | -10/Exiles | Met EX-BIN 2597 | -10/Exiles | Aligned with FarCom system 2599 | -10/Exiles | Given EX-Vault access code 2636 | -10/Exiles | Opened EX-Vault 2646 | -10/Exiles | Found Firepult 2683 | -10/Exiles | Warned to stay clear of 0b10 Research branches 2725 | -10/Exiles | Met EX-DEC 3069 | -10/Exiles | Discovered new exit (range 14) 3119 | -10/Exiles | Build established: Hauler-Mutant 3142 | -10/Exiles | Left Exiles lab with Firepult 3142 | -10/Exiles | Entered Mines 3144 | -9/Mines | Met a Derelict bent on vengeance 3712 | -9/Mines | Learned location of Zion (-7) 3827 | -9/Mines | Build established: Mutant 4086 | -9/Mines | Discovered new exit (range 15) 4214 | -9/Mines | Discovered new exit (range 10) 4696 | -9/Mines | Assembled infested the area 4701 | -9/Mines | Assisted by a Guerilla fighting off Assembled 4758 | -9/Mines | Found a hidden stash of uninstalled traps 4809 | -9/Mines | Core integrity fell below 20% 4813 | -9/Mines | Destroyed by D-53 Grenadier with Mini Grenade Launcher Last Messages --------------- 04776_ C-30 ARC bursts open, deploying its payload. 04776_ S-10 Pest unfolds itself. 04780_ Firepult emits a large uncontrolled burst of heat. 04780_ S-10 Pest destroyed. 04781_ ALERT: Construction progress impeded, dispatching reinforcements to local area. 04784_ Lgt. Treads destroyed. 04794_ S-10 Pest heat damages Flight Unit. 04797_ S-10 Pest heat damages Lgt. Ion Engine. 04801_ S-10 Pest overheating. 04804_ G-34 Mercenary destroyed. 04804_ Flight Unit melted. 04804_ S-10 Pest destroyed. 04809_ Imp. Treads destroyed. 04810_ The unstable cave ceiling collapses. 04811_ Cooling System destroyed. 04811_ Lgt. Ion Engine destroyed. 04811_ Lgt. Treads destroyed. 04812_ The unstable cave ceiling collapses. 04813_ K-01 Serf collects debris. Map ----- +----------------------------------------------------+ | | | | | | | | | | | | | | | ?????????????????????????????????????????????????? | | ?????????????????????????????????????????????????? | | ??????????????????????????##########????###??????? | | ??????????????????######### ##??# |#??????? | | ?????????????????###= ### ###????? | | ???????????####### #*##### ????? | | ??????????# !% #??# ?????? | | ??????????# ###### =##??## #?????????? | | ?????????????????###%##???## ##?????????? | | ??????????# ##" # #= ;????## ##??????????? | | ????? % % ?????## #???????????? | | ????? #" #"#s ##????##[ #???????????? | | ???????????????????# #?????## ##???????????? | | ???????????????????# #####??# !##????????????? | | ???????????????????## ##?# #?????????????? | | ????????????????????# #### #####?????????? | | ????????????????????# #?# ##???###??? | | ????????????????????# #?# ### ##?## ##?? | | ?????????????????????# @ #?# #?# #### #?? | | ????????????????????# #?# #?# #?? | | ????????????????????# #?# ### #?? | | ????????????????????## ## ## #?? | | ?????????????????????## # ## #### | | ?????????????????????? ## ##%### =## #### | | ?????????????????????##?# d ## ##!% ## #### | | ????????????????????????# d ### ##### | | ???????????????????????? # ####%##??# % | | ????????????????????????% [ "# =[=##?# # # | | ???????????????????????? % ## #?#%# # | | ???????????????????????? %= ### # | | ????????????????????????## [k ## ## | | ??????????????????????????# # ####### % | | ???????????????????????????###??####?## ###### | | ???????????????????????????????## ?# ##????## | | ???????????????????????????????# ##### #??????## | | ????????????????????????????????# #???????# | | ????????????????????????????????#=%######??????# | | ?????????????????????????????#### #?????????# | | ?????????????????????????????# [% ##?????????# | | ?????????????????????????????# ! #?########?## | | ?????????????????????????????# ####?# #??### | | ?????????????????????????????# %#????# !!! ###??? | | ####???????????????????####### #????# !!! #### | +----------------------------------------------------+ Best States ------------- Heat Dissipation 47 Energy Generation 10 Energy Capacity 250 Matter Stores 300 Matter Capacity 300 Sight Range 16 Terrain Scan Range 16 Terrain Scan Density 10 Evasion (%) 55 Recoil Reduction 2 Item Schematics ----------------- Huge Storage Unit | -10/Mines | Hacked Robot Schematics ------------------ None Fabricated ------------ Nothing Alien Tech Used ----------------- None Achievements -------------- None Challenges ------------ None Game ------ Seed FactorySystemMask Manual? 0 Play Time 00:22:59 Cumulative 83.7 hours Start 2024.09.15 @ 13:29:44 End 2024.09.15 @ 13:52:08 Sessions 1 Manual Loads 0 Difficulty Rogue Special Mode None Game No. 118 Rogue 118 Adventurer 0 Explorer 0 Win Type - Total 1 Types 1/0/0/0/0/0/0/0/0 Lore% 18 Gallery% 55 Achievement% 43 Wizard Run 0 Options --------- Layout 0 ASCII 0 Keyboard 0 Movement Mouse Keybinds 1 Fullscreen 1 Font 18/TerminusBold Map View 76x50 Zoom Use 0% Tactical HUD 1 Map Filters NONE Filters NONE Steam 1 RUN: 62f513fe-4124-49b6-b5bc-55b1e9eecb71